bitfinex-derivatives/quotes_SOLF0:USTF0_20260105
["timestamp","ask_amount","ask_price","bid_price","bid_amount"]
[1767622045782,2.23710881,134.0,133.92,0.31229075]
[1767622045984,0.33355176,134.0,133.94,0.31229075]
[1767622052288,2.23710881,134.0,133.94,0.31229075]
[1767622053281,0.33355176,134.0,133.94,0.31229075]
[1767622053478,2.23710881,134.0,133.94,0.31229075]
[1767622053891,2.22795329,134.02,133.95,0.33364475]
[1767622054290,0.32439624,134.0,133.93,0.33364475]
[1767622054491,0.32439624,133.99,133.93,0.33364475]
[1767622054881,2.22795329,133.98,133.91,0.33364475]
[1767622055095,1.90355705,133.96,133.89,88.47364475]
[1767622055286,2.22795329,133.97,133.89,0.33364475]
[1767622056685,2.22795329,133.97,133.9,7.05874475]
[1767622057085,1.90355705,133.96,133.9,0.33364475]
[1767622057787,0.32439624,133.96,133.9,0.33364475]
[1767622058191,2.22795329,133.98,133.91,6.7244]
[1767622058379,2.22795329,133.98,133.92,0.33364475]
[1767622058681,0.32439624,133.98,133.92,0.33364475]
[1767622059285,0.32439624,133.97,133.9,0.33364475]
[1767622061782,7.04599624,133.97,133.9,0.33364475]
[1767622061988,2.22795329,133.96,133.9,0.33364475]
[1767622062189,0.32439624,133.95,133.88,0.33364475]
[1767622062381,88.14,133.98,133.86,0.33364475]
[1767622062382,0.32439624,133.93,133.86,0.33364475]
[1767622063495,7.04809624,133.93,133.86,0.33364475]
[1767622063791,7.04809624,133.93,133.8,118.1463]
[1767622063792,0.32439624,133.86,133.78,0.33364475]
[1767622063992,0.32439624,133.82,133.69,104.7728]
[1767622064198,2.22795329,133.81,133.72,2.2372018]
[1767622064399,90.36795329,133.81,133.72,2.2372018]
[1767622065186,0.32439624,133.8,133.72,7.06744475]
[1767622065390,0.32439624,133.79,133.72,0.33364475]
[1767622065993,90.38795329,133.82,133.73,0.33364475]
[1767622066195,2.22795329,133.82,133.73,0.33364475]
[1767622066396,0.32439624,133.82,133.75,0.33364475]
[1767622066583,104.6176,133.9,133.75,0.33364475]
[1767622066584,90.06355705,133.84,133.76,0.33364475]
[1767622066787,88.48439624,133.85,133.77,2.2372018]
[1767622067093,1.90355705,133.86,133.77,2.2372018]
[1767622067094,90.40795329,133.88,133.79,0.33364475]
[1767622067288,90.40795329,133.88,133.78,6.7309]
[1767622067289,2.22795329,133.88,133.8,0.33364475]
[1767622067496,0.32439624,133.87,133.78,8.63435705]
[1767622067690,2.22795329,133.86,133.78,8.63435705]
[1767622067892,1.90355705,133.84,133.77,0.33364475]
[1767622068090,0.32439624,133.85,133.73,0.33364475]
[1767622068091,2.22795329,133.8,133.73,0.33364475]
[1767622068397,1.90355705,133.78,133.7,0.33364475]
[1767622069085,0.32439624,133.77,133.68,193.9636663]
[1767622069293,2.22795329,133.74,133.66,0.33364475]
[1767622069995,2.22795329,133.74,133.66,1.90355705]
[1767622070201,0.32439624,133.73,133.65,0.33364475]
[1767622071598,0.32439624,133.73,133.66,6.7369]
[1767622071994,0.32439624,133.76,133.66,0.33364475]
[1767622072500,0.31859843,133.74,133.63,88.58564614]
[1767622072804,0.31859843,133.73,133.64,0.32564614]
[1767622073699,0.31859843,133.73,133.65,6.7374]
[1767622073888,0.31859843,133.76,133.66,0.32564614]
[1767622074201,0.31859843,133.79,133.69,105.10154614]
[1767622074397,0.31859843,133.79,133.7,0.32564614]
[1767622075503,88.55859843,133.78,133.7,0.32564614]
[1767622075902,0.31859843,133.77,133.67,7.06204614]
[1767622076105,0.31859843,133.77,133.67,0.32564614]
[1767622076290,0.31859843,133.75,133.67,0.32564614]
[1767622076697,0.31859843,133.75,133.65,6.7375]
[1767622076899,88.55859843,133.74,133.65,7.06314614]
[1767622077099,0.31859843,133.73,133.65,7.06314614]
[1767622077807,0.31859843,133.73,133.65,0.32564614]
[1767622079608,88.57859843,133.73,133.65,0.32564614]
[1767622080704,95.31249843,133.73,133.65,0.32564614]
[1767622080905,95.31249843,133.73,133.6,197.85461335]
[1767622080906,0.38704437,133.7,133.62,7.08355033]
[1767622081502,0.05095583,133.7,133.64,0.34475033]
[1767622083909,0.05095583,133.7,133.64,7.08275033]
[1767622084106,0.33608854,133.79,133.69,0.34475033]
[1767622084307,0.33608854,133.82,133.72,0.34475033]
[1767622084510,0.33608854,133.82,133.74,7.07765033]
[1767622085509,0.33608854,133.82,133.77,0.0559066]
[1767622086315,0.33608854,133.86,133.77,0.40065693]
[1767622086510,0.33608854,133.85,133.77,0.0559066]
[1767622086709,0.33608854,133.85,133.74,0.34475033]
[1767622087110,0.33608854,133.85,133.8,0.04698487]
[1767622087406,0.33608854,133.85,133.74,0.34475033]
[1767622087618,0.33608854,133.84,133.74,0.34475033]
[1767622087912,0.33608854,133.83,133.71,88.70475033]
[1767622088118,0.33608854,133.81,133.71,0.34475033]
[1767622088514,0.33608854,133.8,133.71,7.07925033]
[1767622089826,0.33608854,133.79,133.71,0.34475033]
[1767622090218,88.28,133.78,133.71,0.34475033]
[1767622093018,0.33608854,133.77,133.67,7.08125033]
[1767622093222,0.33608854,133.76,133.67,7.08125033]
[1767622094225,0.33608854,133.75,133.67,0.34475033]
[1767622095529,7.06878854,133.75,133.67,0.34475033]
[1767622096739,0.33608854,133.74,133.67,0.34475033]
[1767622097333,7.06808854,133.77,133.67,7.08135033]
[1767622097527,88.28,133.75,133.67,7.08135033]
[1767622098121,0.33608854,133.77,133.67,7.08135033]
[1767622098328,88.61608854,133.76,133.67,7.08135033]
[1767622098528,7.06828854,133.76,133.67,7.08135033]
[1767622098827,88.28,133.75,133.67,7.08135033]
[1767622099230,88.28,133.75,133.64,104.8136]
[1767622099231,0.33608854,133.71,133.62,0.34475033]
[1767622099432,88.63608854,133.71,133.62,0.34475033]
[1767622100434,0.33608854,133.67,133.56,0.34475033]
[1767622100727,0.33608854,133.65,133.53,0.34475033]
[1767622101320,0.33608854,133.63,133.53,0.34475033]
[1767622102129,88.63608854,133.66,133.56,7.08685033]
[1767622102328,0.33608854,133.65,133.56,7.08685033]
[1767622102731,0.33608854,133.68,133.58,0.34475033]
[1767622102939,0.33608854,133.67,133.58,0.34475033]
[1767622103735,88.65608854,133.67,133.58,0.34475033]
[1767622106534,0.33608854,133.65,133.56,6.7421]
[1767622106736,0.33608854,133.63,133.55,88.72475033]
[1767622106935,0.33608854,133.63,133.55,0.34475033]
[1767622107430,5.44792917,133.62,133.55,0.34475033]
[1767622107636,5.44753013,133.61,133.55,0.34475033]
[1767622107833,104.8338,133.62,133.51,88.4]
[1767622108134,5.44659014,133.61,133.54,6.743]
[1767622108332,5.45116669,133.6,133.54,6.743]
[1767622108539,88.67608854,133.63,133.52,7.08865033]
[1767622108733,5.45117071,133.62,133.52,7.08865033]
[1767622108935,0.33608854,133.6,133.49,0.34475033]
[1767622109136,0.33608854,133.58,133.49,0.34475033]
[1767622109343,0.33608854,133.56,133.46,0.34475033]
[1767622110146,0.33608854,133.56,133.47,0.34475033]
[1767622110943,0.31977609,133.6,133.48,0.32874001]
[1767622111145,0.31977609,133.63,133.53,0.32874001]
[1767622113243,0.31977609,133.62,133.53,0.32874001]
[1767622113646,88.67977609,133.62,133.53,0.32874001]
[1767622113949,0.05039265,133.59,133.53,0.32874001]
[1767622114450,0.05039265,133.59,133.52,0.32874001]
[1767622115039,0.37016874,133.59,133.49,0.32874001]
[1767622115441,0.31977609,133.58,133.49,7.07434001]
[1767622115642,0.31977609,133.58,133.49,0.32874001]
[1767622116954,0.31977609,133.58,133.5,6.7449]
[1767622117252,0.31977609,133.58,133.49,0.32874001]
[1767622117555,0.31977609,133.63,133.54,7.07194001]
[1767622118854,0.31977609,133.63,133.51,0.32874001]
[1767622118855,0.31977609,133.6,133.51,0.32874001]
[1767622119147,0.31977609,133.56,133.44,0.32874001]
[1767622119348,88.69977609,133.55,133.44,0.32874001]
[1767622119546,0.31977609,133.53,133.44,0.32874001]
[1767622120749,0.31977609,133.53,133.44,7.07684001]
[1767622120951,0.31977609,133.53,133.44,0.32874001]
[1767622121757,0.31977609,133.53,133.45,0.32874001]
[1767622122147,88.4,133.57,133.46,0.32874001]
[1767622122352,88.4,133.57,133.49,0.32874001]
[1767622122353,0.31977609,133.57,133.49,0.32874001]
[1767622123053,0.31977609,133.57,133.49,7.07414001]
[1767622123855,0.31977609,133.57,133.5,6.7451]
[1767622124151,0.31977609,133.57,133.49,0.32874001]
[1767622124959,0.31977609,133.57,133.51,6.7444]
[1767622125160,0.31977609,133.57,133.49,0.32874001]
[1767622125554,0.31977609,133.57,133.5,6.7451]
[1767622126347,0.31977609,133.57,133.51,6.7446]
[1767622126555,0.31977609,133.6,133.5,0.32874001]
[1767622127356,88.73977609,133.6,133.5,0.32874001]
[1767622127550,0.31977609,133.58,133.49,6.7453]
[1767622127959,0.31977609,133.58,133.47,7.07514001]
[1767622128353,7.06207609,133.56,133.47,7.07514001]
[1767622132264,0.33797186,133.53,133.44,0.32874001]
[1767622134268,7.08177186,133.53,133.44,0.32874001]
[1767622135167,7.08177186,133.53,133.44,7.07694001]
[1767622135771,7.08177186,133.53,133.41,193.4735]
[1767622135772,0.33797186,133.56,133.45,0.32488883]
[1767622137077,0.33797186,133.54,133.45,7.07228883]
[1767622137390,0.33797186,133.54,133.45,0.32488883]
[1767622137672,0.33797186,133.54,133.46,6.7472]
[1767622138372,0.33797186,133.54,133.47,6.7466]
[1767622138871,0.33797186,133.53,133.43,0.32488883]
[1767622139071,0.33797186,133.51,133.4,0.32488883]
[1767622139280,0.33797186,133.49,133.4,0.32488883]
[1767622139477,0.33797186,133.49,133.37,0.32488883]
[1767622140280,0.33797186,133.49,133.39,0.32488883]
[1767622140880,0.34099831,133.53,133.43,0.31618588]
[1767622141075,0.34099831,133.51,133.4,0.31618588]
[1767622141274,0.34099831,133.51,133.43,6.7487]
[1767622141475,0.34099831,133.51,133.42,0.31618588]
[1767622141984,0.34099831,133.51,133.39,105.0083]
[1767622142284,0.34099831,133.49,133.39,0.31618588]
[1767622142669,7.08799831,133.47,133.39,0.31618588]
[1767622142868,7.08799831,133.47,133.38,6.7512]
[1767622142869,5.8202705,133.46,133.36,0.31618588]
[1767622143076,5.8202705,133.45,133.36,0.31618588]
[1767622143275,5.47927219,133.44,133.36,0.31618588]
[1767622143472,0.05066068,133.42,133.36,0.31618588]
[1767622144180,0.05066068,133.42,133.36,7.06838588]
[1767622144770,0.34099831,133.45,133.38,0.05397503]
[1767622145682,0.34099831,133.54,133.42,0.31618588]
[1767622145881,5.8300525,133.53,133.42,0.31618588]
[1767622146084,5.8300525,133.52,133.42,0.31618588]
[1767622146283,5.48905419,133.51,133.42,0.31618588]
[1767622146482,0.34099831,133.52,133.46,0.05109291]
[1767622146678,5.48879709,133.51,133.46,0.05109291]
[1767622146877,0.34099831,133.52,133.46,0.05109291]
[1767622147078,5.48874102,133.51,133.46,0.05109291]
[1767622147282,0.34099831,133.52,133.46,0.05109291]
[1767622147487,5.48961326,133.51,133.46,0.05109291]
[1767622147680,0.34099831,133.52,133.46,0.05109291]
[1767622147884,5.48924284,133.51,133.46,0.05109291]
[1767622148080,0.34099831,133.52,133.46,0.05109291]
[1767622148386,5.48851685,133.51,133.46,0.05109291]
[1767622148684,5.48851685,133.5,133.46,0.05109291]
[1767622148986,0.34099831,133.52,133.46,0.05109291]
[1767622149182,5.49098782,133.51,133.46,0.05109291]
[1767622149385,0.34099831,133.52,133.46,0.05109291]
[1767622149583,0.34099831,133.57,133.46,0.36727879]
[1767622149780,5.83561255,133.56,133.46,0.36727879]
[1767622150080,5.49461424,133.55,133.46,0.31618588]
[1767622150485,5.49461424,133.55,133.5,0.05256224]
[1767622152384,0.34099831,133.56,133.5,0.05256224]
[1767622152685,5.84361446,133.55,133.5,0.05256224]
[1767622152885,0.34099831,133.55,133.5,0.05256224]
[1767622153083,0.34099831,133.55,133.47,6.7466]
[1767622153286,0.34099831,133.55,133.46,0.31618588]
[1767622153586,0.34099831,133.55,133.51,0.05248066]
[1767622159996,0.34099831,133.58,133.51,0.05248066]
[1767622160387,0.34099831,133.58,133.5,0.31618588]
[1767622160898,0.34099831,133.58,133.53,0.05724043]
[1767622163290,0.34099831,133.58,133.48,6.7458]
[1767622163499,0.34099831,133.58,133.47,0.31618588]
[1767622164688,7.08319831,133.56,133.47,7.06288588]
[1767622165192,0.34099831,133.56,133.48,6.7462]
[1767622165390,0.34099831,133.56,133.47,0.31618588]
[1767622165997,0.34099831,133.56,133.48,7.06228588]
[1767622168594,0.34099831,133.54,133.42,0.31618588]
[1767622169695,7.08519831,133.52,133.43,7.06488588]
[1767622169897,7.08519831,133.52,133.43,0.31618588]
[1767622170501,7.08519831,133.52,133.4,88.81618588]
[1767622170502,0.34099831,133.5,133.4,88.81618588]
[1767622170795,0.31829499,133.49,133.4,0.31618588]
[1767622171905,0.31829499,133.49,133.41,6.7498]
[1767622171906,7.06449499,133.49,133.41,6.7498]
[1767622173193,0.31829499,133.49,133.41,0.34689297]
[1767622173399,0.31829499,133.52,133.42,0.34689297]
[1767622174605,7.06259499,133.52,133.44,6.7482]
[1767622175104,7.06259499,133.52,133.42,7.09569297]
[1767622175304,7.06259499,133.52,133.42,0.34689297]
[1767622175507,7.06259499,133.52,133.08,73.75003191]
[1767622175508,0.31829499,133.49,133.38,0.34689297]
[1767622175803,0.31829499,133.49,133.39,0.34689297]
[1767622176703,0.31829499,133.49,133.42,6.7492]
[1767622178807,0.31829499,133.49,133.41,0.34689297]
[1767622179003,0.31829499,133.49,133.4,95.2698]
[1767622179710,0.31829499,133.49,133.4,95.61669297]
[1767622180312,7.06429499,133.49,133.41,6.7497]
[1767622180507,0.31829499,133.49,133.41,6.7497]
[1767622180711,0.31829499,133.49,133.41,0.34689297]
[1767622181012,0.31829499,133.55,133.45,0.34689297]
[1767622181213,0.31829499,133.59,133.47,0.34689297]
[1767622181506,0.31829499,133.59,133.49,0.34689297]
[1767622182310,0.31829499,133.58,133.5,0.34689297]
[1767622182499,0.31829499,133.58,133.47,0.34689297]
[1767622182701,5.80511347,133.57,133.47,0.34689297]
[1767622183001,0.31829499,133.56,133.44,88.86689297]
[1767622183605,0.31829499,133.54,133.46,6.7471]
[1767622187216,7.06159499,133.54,133.46,6.7471]
[1767622188718,7.06159499,133.54,133.45,0.34689297]
[1767622190210,0.31829499,133.52,133.43,88.86689297]
[1767622190920,7.06259499,133.52,133.44,7.09509297]
[1767622191513,6.7437,133.54,133.45,7.09449297]
[1767622191818,7.06199499,133.54,133.45,7.09449297]
[1767622195827,7.06199499,133.54,133.46,6.7472]
[1767622196532,0.31829499,133.54,133.47,7.08567285]
[1767622197833,88.46,133.55,133.48,6.7461]
[1767622198131,88.46,133.55,133.48,7.08527285]
[1767622199221,88.79242806,133.55,133.48,7.08527285]
[1767622201329,0.33242806,133.55,133.48,7.08527285]
[1767622202030,7.07512806,133.55,133.46,7.08521491]
[1767622202230,7.07512806,133.55,133.46,0.33851491]
[1767622202431,0.33242806,133.55,133.46,0.33851491]
[1767622202633,0.3236579,133.58,133.51,0.33851491]
[1767622202838,0.3236579,133.62,133.51,0.33851491]
[1767622203136,5.84042014,133.61,133.51,0.33851491]
[1767622203437,0.3236579,133.61,133.51,0.33851491]
[1767622203630,7.0637579,133.61,133.53,6.7437]
[1767622203929,5.51446745,133.6,133.5,88.52]
[1767622204134,0.3236579,133.58,133.5,88.52]
[1767622204328,0.3236579,133.58,133.48,0.33851491]
[1767622204532,0.3236579,133.58,133.49,0.33851491]
[1767622204837,104.8597,133.59,133.45,0.33851491]
[1767622204838,0.3236579,133.56,133.45,0.33851491]
[1767622205134,7.0664579,133.55,133.47,6.7463]
[1767622205636,0.3236579,133.55,133.47,0.33851491]
[1767622205836,0.3236579,133.55,133.48,6.7462]
[1767622207533,0.3236579,133.55,133.47,0.33851491]
[1767622208737,0.3236579,133.55,133.48,6.7462]
[1767622208936,0.3236579,133.58,133.48,0.33851491]
[1767622209142,0.3236579,133.56,133.48,0.33851491]
[1767622209844,0.3236579,133.56,133.49,7.08401491]
[1767622210149,0.3236579,133.59,133.5,0.33851491]
[1767622210441,0.3236579,133.62,133.52,0.33851491]
[1767622210644,5.51765835,133.61,133.52,0.33851491]
[1767622210832,0.3236579,133.62,133.52,0.33851491]
[1767622211032,0.3236579,133.62,133.54,0.33851491]
[1767622211938,0.3236579,133.58,133.47,0.33851491]
[1767622212243,0.3236579,133.56,133.47,0.33851491]
[1767622212430,6.7429,133.55,133.47,0.33851491]
[1767622213144,7.0669579,133.54,133.46,6.7472]
[1767622216142,7.0669579,133.54,133.46,7.08571491]
[1767622216949,0.05451729,133.51,133.46,7.08571491]
[1767622217135,0.05451729,133.51,133.44,0.33851491]
[1767622218639,0.05451729,133.51,133.45,6.7477]
[1767622219148,0.05451729,133.51,133.44,0.33851491]
[1767622220542,0.05451729,133.51,133.44,7.08671491]
[1767622221853,0.37817519,133.51,133.44,7.08671491]
[1767622224746,0.3236579,133.5,133.42,88.5]
[1767622225149,7.0689579,133.5,133.42,88.5]
[1767622225356,0.3236579,133.5,133.43,0.33851491]
[1767622226052,5.52320786,133.49,133.37,0.33851491]
[1767622226251,0.3236579,133.46,133.36,0.33851491]
[1767622226458,0.3236579,133.44,133.36,7.09071491]
[1767622226648,0.374173,133.44,133.36,0.33851491]
[1767622227160,0.0505151,133.44,133.37,0.33851491]
[1767622228552,0.0505151,133.44,133.39,6.7506]
[1767622229360,0.0505151,133.44,133.37,7.09021491]
[1767622230653,0.374173,133.44,133.32,0.33851491]
[1767622231058,0.3236579,133.44,133.32,0.33851491]
[1767622231563,0.3236579,133.44,133.35,0.3257926]
[1767622232060,0.3236579,133.44,133.36,0.3257926]
[1767622233163,0.3236579,133.44,133.37,6.7517]
[1767622233753,0.33453122,133.47,133.38,0.3257926]
[1767622234162,0.33453122,133.47,133.38,7.0769926]
[1767622234458,0.33453122,133.47,133.38,0.3257926]
[1767622235558,0.33453122,133.47,133.38,7.0766926]
[1767622236259,7.08133122,133.47,133.38,7.0766926]
[1767622237066,0.33453122,133.46,133.38,7.0766926]
[1767622237263,6.7468,133.47,133.39,0.3257926]
[1767622237660,0.33453122,133.46,133.39,0.3257926]
[1767622237964,0.33453122,133.46,133.38,6.7509]
[1767622239566,0.33453122,133.46,133.34,0.3257926]
[1767622239567,0.33453122,133.45,133.34,0.3257926]
[1767622239864,0.33453122,133.42,133.34,0.3257926]
[1767622240752,0.05273646,133.39,133.34,0.3257926]
[1767622240953,0.33453122,133.45,133.34,0.3257926]
[1767622241157,0.33453122,133.45,133.37,0.05317349]
[1767622242067,7.08303122,133.44,133.37,0.05317349]
[1767622242264,0.33453122,133.44,133.37,0.05317349]
[1767622242568,0.33453122,133.44,133.36,6.7522]
[1767622242869,0.33453122,133.44,133.39,0.05437654]
[1767622243056,7.08293122,133.44,133.39,0.05437654]
[1767622245172,0.33453122,133.41,133.3,0.3257926]
[1767622245464,0.33453122,133.41,133.32,0.3257926]
[1767622246570,0.33453122,133.46,133.36,0.3257926]
[1767622247164,0.05155635,133.42,133.36,0.3257926]
[1767622248871,0.33453122,133.41,133.32,0.3257926]
[1767622249275,0.33453122,133.41,133.31,0.3257926]
[1767622249276,0.33453122,133.4,133.31,0.3257926]
[1767622249663,0.33453122,133.4,133.28,88.58]
[1767622249664,0.33453122,133.39,133.28,0.3257926]
[1767622249866,0.33453122,133.37,133.29,0.3257926]
[1767622250862,88.52,133.4,133.29,0.3257926]
[1767622251175,88.85453122,133.4,133.29,0.3257926]
[1767622251378,0.33453122,133.39,133.31,6.7547]
[1767622252371,0.33453122,133.39,133.29,0.3257926]
[1767622252577,6.7499,133.41,133.31,0.32508037]
[1767622252773,7.06940249,133.41,133.31,0.32508037]
[1767622253176,0.31950249,133.41,133.34,6.7532]
[1767622254279,0.04804349,133.39,133.34,6.7532]
[1767622254477,0.04804349,133.39,133.33,0.32508037]
[1767622255280,0.04804349,133.39,133.36,6.7522]
[1767622256979,0.04804349,133.39,133.37,6.7517]
[1767622257186,0.04804349,133.39,133.35,0.32508037]
[1767622258381,0.04804349,133.39,133.33,0.32508037]
[1767622259081,0.04804349,133.39,133.33,7.07848037]
[1767622259281,0.36754598,133.39,133.3,0.32508037]
[1767622259678,0.31950249,133.39,133.3,0.32508037]
[1767622260387,0.31950249,133.39,133.33,6.7538]
[1767622260583,6.749,133.43,133.32,0.32508037]
[1767622260790,0.32658638,133.42,133.32,0.32508037]
[1767622261285,0.32658638,133.45,133.34,0.34572969]
[1767622261491,5.83419102,133.44,133.34,88.92572969]
[1767622261693,0.32658638,133.44,133.34,88.92572969]
[1767622262783,7.07538638,133.43,133.34,95.67882969]
[1767622263288,0.32658638,133.43,133.36,0.34572969]
[1767622265189,7.07538638,133.43,133.36,0.34572969]
[1767622265582,0.32658638,133.43,133.36,0.34572969]
[1767622265992,6.7481,133.45,133.36,6.7522]
[1767622266197,0.32658638,133.46,133.37,0.34572969]
[1767622266384,0.32658638,133.44,133.37,0.34572969]
[1767622266583,0.0472789,133.42,133.37,0.34572969]
[1767622266889,0.0472789,133.42,133.31,35.9096]
[1767622266890,0.0472789,133.42,133.34,0.34572969]
[1767622267385,0.32658638,133.44,133.34,0.34572969]
[1767622267581,0.32658638,133.47,133.38,0.34572969]
[1767622267890,5.52830905,133.46,133.38,0.34572969]
[1767622268090,5.52830905,133.45,133.38,7.09692969]
[1767622268295,7.07378638,133.47,133.38,7.09692969]
[1767622268488,5.53278174,133.46,133.38,7.09692969]
[1767622268694,6.7473,133.46,133.38,7.09692969]
[1767622269381,7.07388638,133.46,133.38,7.09692969]
[1767622270791,0.32658638,133.46,133.39,7.09642969]
[1767622270990,6.7467,133.48,133.4,0.34572969]
[1767622271393,88.84658638,133.49,133.41,6.7498]
[1767622271698,5.54004131,133.48,133.4,0.34572969]
[1767622271895,0.32658638,133.49,133.4,0.34572969]
[1767622272193,5.54006376,133.48,133.41,7.09552969]
[1767622272399,7.07238638,133.49,133.41,7.09552969]
[1767622272598,5.53944105,133.48,133.41,7.09552969]
[1767622272797,7.07238638,133.49,133.41,7.09552969]
[1767622273096,5.53944105,133.48,133.41,0.34572969]
[1767622273307,7.07238638,133.49,133.41,0.34572969]
[1767622273607,5.53882746,133.48,133.41,0.34572969]
[1767622273905,7.07238638,133.49,133.41,0.34572969]
[1767622274209,5.86541384,133.48,133.41,0.34572969]
[1767622274401,7.07278638,133.48,133.41,0.34572969]
[1767622275007,0.32658638,133.48,133.41,0.34572969]
[1767622276603,0.32658638,133.48,133.41,7.09552969]
[1767622277109,0.32658638,133.5,133.43,7.09452969]
[1767622277307,38.18741991,133.52,133.44,0.34572969]
[1767622277507,31.44281991,133.52,133.44,0.34572969]
[1767622277911,31.44281991,133.52,133.45,7.09322969]
[1767622278308,0.04837822,133.49,133.45,0.34572969]
[1767622279711,0.04837822,133.49,133.34,315.1492]
[1767622279712,0.04837822,133.49,133.42,88.90572969]
[1767622280110,31.76940629,133.52,133.43,0.34572969]
[1767622281511,0.32658638,133.51,133.42,88.56]
[1767622281716,0.32658638,133.5,133.43,6.7488]
[1767622282314,7.07068638,133.53,133.44,7.09392969]
[1767622282619,0.32658638,133.53,133.44,7.09392969]
[1767622283611,6.7442,133.52,133.44,7.09392969]
[1767622284321,0.32658638,133.47,133.36,0.34572969]
[1767622284521,0.32658638,133.47,133.33,105.0552]
[1767622284522,0.32658638,133.45,133.33,0.34572969]
[1767622285019,0.32658638,133.45,133.34,0.34572969]
[1767622285626,6.7494,133.42,133.34,7.09902969]
[1767622286119,88.5,133.46,133.38,0.34572969]
[1767622286326,0.32658638,133.47,133.35,0.34572969]
[1767622286621,0.32658638,133.47,133.35,88.88572969]
[1767622286817,0.32658638,133.47,133.36,0.34572969]
[1767622287019,6.7479,133.45,133.36,0.34572969]
[1767622287212,0.04857813,133.43,133.36,0.34572969]
[1767622288623,0.04857813,133.43,133.36,7.09792969]
[1767622288820,0.04857813,133.43,133.36,0.34572969]
[1767622289018,0.32658638,133.48,133.38,0.34572969]
[1767622289523,0.32658638,133.48,133.39,0.34572969]
[1767622289927,7.07288638,133.48,133.39,7.09652969]
[1767622290428,7.07288638,133.48,133.42,0.05052473]
[1767622290824,0.34254242,133.47,133.42,0.05052473]
[1767622291028,0.39905292,133.46,133.37,95.3116]
[1767622291325,0.39905292,133.46,133.37,0.31302957]
[1767622291528,0.39905292,133.46,133.31,0.31302957]
[1767622291529,0.34254242,133.44,133.31,0.31302957]
[1767622291720,0.34254242,133.42,133.31,0.31302957]
[1767622293620,6.7504,133.4,133.31,7.06782957]
[1767622293826,0.34254242,133.42,133.31,0.31302957]
[1767622295028,7.09234242,133.41,133.31,0.31302957]
[1767622295730,0.05479219,133.37,133.31,0.31302957]
[1767622296216,0.05479219,133.37,133.33,6.7537]
[1767622296421,7.09234242,133.41,133.33,6.80956969]
[1767622298336,0.34254242,133.41,133.33,7.12259926]
[1767622298532,0.34254242,133.41,133.34,6.7531]
[1767622299424,0.34254242,133.41,133.36,0.05601296]
[1767622302436,7.09234242,133.41,133.36,0.05601296]
[1767622303736,0.34254242,133.41,133.36,0.05601296]
[1767622305938,7.09264242,133.41,133.36,0.05601296]
[1767622306947,0.39650299,133.4,133.32,6.7538]
[1767622307640,7.14710299,133.4,133.32,6.7538]
[1767622308935,6.7508,133.39,133.32,7.06682957]
[1767622309343,0.34254242,133.38,133.29,0.31302957]
[1767622309745,0.3923252,133.37,133.29,0.31302957]
[1767622310232,0.34254242,133.37,133.29,0.31302957]
[1767622310432,7.09434242,133.37,133.29,7.06872957]
[1767622312044,0.04717178,133.34,133.29,7.06872957]
[1767622314136,0.04717178,133.34,133.3,0.31392534]
[1767622314341,0.04717178,133.34,133.31,0.31392534]
[1767622314741,0.04717178,133.34,133.28,0.31392534]
[1767622315144,7.08625808,133.37,133.29,6.7559]
[1767622315539,0.04862466,133.32,133.28,0.31392534]
[1767622315949,7.08625808,133.37,133.28,0.31392534]
[1767622316145,7.08625808,133.37,133.3,6.7553]
[1767622317246,0.33445808,133.37,133.3,6.7553]
[1767622317446,0.33445808,133.37,133.32,0.0528356]
[1767622319954,9.00627075,133.4,133.32,7.12096094]
[1767622320344,9.00627075,133.4,133.32,7.06812534]
[1767622320546,0.33445808,133.4,133.33,0.31392534]
[1767622320753,118.4575,133.46,133.35,0.05281373]
[1767622320754,0.33480807,133.42,133.35,0.05281373]
[1767622321144,0.33480807,133.42,133.33,0.31392534]
[1767622321545,7.08410807,133.42,133.37,0.05699522]
[1767622321854,0.33480807,133.41,133.37,0.05699522]
[1767622322654,0.33480807,133.44,133.37,0.05699522]
[1767622322856,2.25632074,133.44,133.37,0.05699522]
[1767622323167,0.33480807,133.44,133.37,0.33406226]
[1767622323468,1.92151267,133.47,133.39,0.0532463]
[1767622323655,2.25632074,133.47,133.39,0.0532463]
[1767622324064,0.33480807,133.46,133.39,0.0532463]
[1767622324370,0.33480807,133.44,133.39,0.0532463]
[1767622324962,0.33480807,133.44,133.37,0.33406226]
[1767622325150,0.33480807,133.44,133.4,0.04877559]
[1767622326261,8.66931267,133.45,133.4,0.04877559]
[1767622326262,1.92151267,133.45,133.4,0.04877559]
[1767622326660,0.0497956,133.43,133.35,0.33406226]
[1767622326959,0.33480807,133.49,133.4,2.25557493]
[1767622327353,0.33480807,133.5,133.4,0.33406226]
[1767622327561,2.25632074,133.48,133.4,0.33406226]
[1767622328159,2.25632074,133.48,133.43,0.05193653]
[1767622328456,0.33480807,133.48,133.43,0.05193653]
[1767622328659,7.08120807,133.48,133.43,0.05193653]
[1767622329570,0.33480807,133.47,133.43,0.05193653]
[1767622329772,0.33480807,133.46,133.37,0.33406226]